fUSD/lending_fUSD_20241210
["ID","MTS","AMOUNT","RATE_DAILY","PERIOD"]
[344864800,1733842245591,-666.0,9.999e-05,2]
[344864801,1733842245600,-4312.468795,9.999e-05,2]
[344864802,1733842245610,-500.0,9.999e-05,2]
[344864803,1733842245619,-666.0,9.999e-05,2]
[344864804,1733842245629,-4788.48331468,9.999e-05,2]
[344864805,1733842245653,-16584.83640185,9.999e-05,2]
[344864806,1733842245664,-816.5783535,9.999e-05,2]
[344864807,1733842245676,-24618.94754385,9.999e-05,2]
[344864808,1733842245756,-75695.10833916,9.999e-05,2]
[344864809,1733842245768,-1699.64406135,9.999e-05,2]
[344864810,1733842245779,-1207.76761381,9.999e-05,2]
[344864838,1733843431903,-1291.42,8.219e-05,2]
[344864840,1733843431913,-1156.73,8.257e-05,2]
[344864842,1733843431922,-200.0,8.257e-05,2]
[344864844,1733843431931,-151.4,8.495e-05,2]
[344864846,1733843431940,-500.0,8.547e-05,2]
[344864848,1733843431950,-1000.0,8.604e-05,2]
[344864850,1733843431959,-624.0,8.657e-05,2]
[344864852,1733843431969,-200.0,8.7e-05,2]
[344864854,1733843431978,-1002.7503,8.85e-05,2]
[344864856,1733843431988,-250.0,8.927e-05,2]
[344864858,1733843431997,-250.0,8.95e-05,2]
[344864860,1733843432012,-300.0,8.985e-05,2]
[344864862,1733843432022,-2000.0,8.986e-05,2]
[344864863,1733843432031,-496.56921938,8.986e-05,2]
[344865034,1733843437571,-1996.24234333,8.986e-05,2]
[344865035,1733843437582,-1100.81192135,8.986e-05,2]
[344865036,1733843437644,-3947.7400254,8.986e-05,2]
[344865037,1733843437718,-1989.26833443,8.986e-05,2]
[344865038,1733843437902,-469.35815611,8.986e-05,2]
[344865039,1733843437912,-5202.06,9.038e-05,2]
[344865040,1733843437921,-1852.42,9.055e-05,2]
[344865041,1733843437930,-1500.0,9.063e-05,2]
[344865042,1733843437939,-150.0,9.149e-05,2]
[344865043,1733843437949,-23900.0,9.15e-05,2]
[344865044,1733843437958,-151.4,9.345e-05,2]
[344865045,1733843437968,-150.0,9.452e-05,2]
[344865047,1733843437977,-150.0,9.452e-05,2]
[344865048,1733843437986,-150.0,9.452e-05,2]
[344865050,1733843437996,-150.0,9.452e-05,2]
[344865051,1733843438007,-150.0,9.452e-05,2]
[344865052,1733843438017,-150.0,9.452e-05,2]
[344865053,1733843438026,-150.0,9.452e-05,2]
[344865054,1733843438035,-435.34,9.452e-05,2]
[344865055,1733843438044,-150.0,9.452e-05,2]
[344865057,1733843438053,-150.0,9.452e-05,2]
[344865058,1733843438063,-150.0,9.452e-05,2]
[344865059,1733843438072,-3751.232,9.499e-05,2]
[344865060,1733843438081,-177.898,9.499e-05,2]
[344865061,1733843438090,-35000.0,9.5e-05,2]
[344865062,1733843438099,-2120.0656,9.61e-05,2]
[344865063,1733843438108,-264.5458,9.61e-05,2]
[344865064,1733843438117,-1000.0,9.68e-05,2]
[344865065,1733843438127,-4567.5746,9.71e-05,2]
[344865066,1733843438136,-624.0,9.739e-05,2]
[344865067,1733843438146,-2176.6679,9.799e-05,2]
[344865068,1733843438155,-2272.0,9.8e-05,2]
[344865069,1733843438164,-1982.3251,9.81e-05,2]
[344865070,1733843438173,-5704.9948,9.81e-05,2]
[344865071,1733843438182,-13401.4949,9.81e-05,2]
[344865072,1733843438191,-500.0,9.81e-05,2]
[344865073,1733843438200,-199.269,9.81e-05,2]
[344865074,1733843438210,-1000.0,9.81e-05,2]
[344865075,1733843438219,-2500.0,9.81e-05,2]
[344865076,1733843438229,-700.51,9.863e-05,2]
[344865077,1733843438238,-420.0,9.883e-05,2]
[344865078,1733843438247,-5000.0,9.899e-05,2]
[344865079,1733843438259,-2063.53,9.9e-05,2]
[344865080,1733843438268,-2000.0,9.9e-05,2]
[344865081,1733843438278,-176728.18320978,9.91e-05,2]
[344865082,1733843438287,-1000.0,9.973e-05,2]
[344865083,1733843438296,-500.0,9.973e-05,2]
[344865084,1733843438306,-2139982.44563245,9.997e-05,2]
[344865085,1733843438315,-454.91396695,9.998e-05,2]
[344865086,1733843438324,-500.0,9.998e-05,2]
[344865087,1733843438334,-500.0,9.998e-05,2]
[344865088,1733843438343,-461.05241024,9.998e-05,2]
[344865089,1733843438353,-2899.40826298,9.998e-05,2]
[344865090,1733843438362,-500.0,9.998e-05,2]
[344865091,1733843438371,-3788809.01654085,9.999e-05,2]
[344865092,1733843438381,-200000.0,9.999e-05,2]
[344865093,1733843438390,-666.0,9.999e-05,2]
[344865094,1733843438399,-666.0,9.999e-05,2]
[344865095,1733843438408,-251.65257741,9.999e-05,2]
[344865096,1733843438418,-200.0,9.999e-05,2]
[344865097,1733843438427,-1614.36675486,0.0001,2]
[344865098,1733843438436,-251.65257741,0.0001,2]
[344865099,1733843438446,-6704877.39178796,0.0001,2]
[344865100,1733843439569,-9582.5805,0.0001,2]
[344865103,1733843439685,-1523.37405831,0.0001,2]
[344865104,1733843439768,-376.23493418,0.0001,2]
[344865121,1733843442752,-2516.23,9.599e-05,2]
[344865122,1733843442770,-6821.6843,0.0001,2]
[344865123,1733843442924,-15426.0,0.0001,2]
[344865124,1733843442996,-446.34661118,0.0001,2]
[344865125,1733843443012,-526.86,0.0001,2]
[344865126,1733843443023,-547.127,0.0001,2]
[344865127,1733843443034,-606.78,0.0001,2]
[344865128,1733843443046,-1039.10753854,0.0001,2]
[344865144,1733843445564,-418.4613755,0.0001,2]
[344865146,1733843445575,-4899.75,0.0001,2]
[344865149,1733843445587,-481.40144037,0.0001,2]
[344865151,1733843445600,-488.88,0.0001,2]
[344865154,1733843445623,-482.7265,0.0001,2]
[344865155,1733843445688,-5639.1,0.0001,2]
[344865156,1733843445700,-20030.0,0.0001,2]
[344865157,1733843445747,-49314.9999765,0.0001,2]
[344865158,1733843445762,-64780.48892308,0.0001,2]
[344865159,1733843445774,-20248.54106792,0.0001,2]
[344865160,1733843445785,-2004.68397039,0.0001,2]
[344865164,1733843865973,284.38951938,7.96e-05,2]
[344865165,1733843884056,6000.0,0.00012,15]
[344865169,1733844515018,156.96127287,0.00015,30]
[344865203,1733844631938,-381.78912937,8.219e-05,2]
[344865204,1733844631950,-911.71087063,8.219e-05,2]
[344865205,1733844631961,-200.0,8.674e-05,2]
[344865206,1733844631971,-179.39796297,8.687e-05,2]
[344865207,1733844631986,-19439.53920001,8.687e-05,2]
[344865208,1733844632049,-784.52407144,8.687e-05,2]
[344865209,1733844632127,-3496.53876558,8.687e-05,2]
[344865210,1733844632138,-1626.19,8.694e-05,2]
[344865211,1733844632148,-192.5,8.773e-05,2]
[344865212,1733844632159,-317.07,8.816e-05,2]
[344865213,1733844632171,-1000.0,8.869e-05,2]
[344865214,1733844632181,-825.6,8.869e-05,2]
[344865215,1733844632191,-490.09,8.901e-05,2]
[344865216,1733844632201,-200.0,8.94e-05,2]
[344865217,1733844632211,-250.0,9.077e-05,2]
[344865218,1733844632221,-250.0,9.119e-05,2]
[344865219,1733844632232,-1500.0,9.142e-05,2]
[344865220,1733844632242,-300.0,9.164e-05,2]
[344865221,1733844632252,-2000.0,9.165e-05,2]
[344865222,1733844632262,-9980.13,9.183e-05,2]
[344865223,1733844632273,-2651.57,9.184e-05,2]
[344865224,1733844632283,-172.86,9.326e-05,2]
[344865225,1733844632293,-3214.193,9.494e-05,2]
[344865226,1733844632303,-177.898,9.494e-05,2]
[344865227,1733844632313,-150.0,9.494e-05,2]
[344865228,1733844632323,-192.0,9.695e-05,2]
[344865229,1733844632333,-192.0,9.695e-05,2]
[344865230,1733844632342,-310.369,9.773e-05,2]
[344865231,1733844632352,-1394.5622,9.81e-05,2]
[344865232,1733844632361,-1481.4741,9.81e-05,2]
[344865233,1733844632370,-754.02,9.863e-05,2]
[344865234,1733844632380,-39297.9971,9.873e-05,2]
[344865235,1733844632390,-10059.8673,9.873e-05,2]
[344865236,1733844632399,-1000.0,9.873e-05,2]
[344865237,1733844632409,-1000.0,9.9e-05,2]
[344865238,1733844632419,-5000.0,9.9e-05,2]
[344865239,1733844632429,-4947.83814127,9.972e-05,2]
[344865241,1733844632453,-2557.70136401,9.972e-05,2]
[344865243,1733844632462,-213.33736312,9.973e-05,2]
[344865246,1733844632485,-4231.85377107,9.973e-05,2]
[344865318,1733844638503,-2000.0,9.709e-05,2]
[344865320,1733844638514,-36999.999,9.973e-05,2]
[344865322,1733844638525,-1607.80986581,9.973e-05,2]
[344865324,1733844638535,-1434.79254946,9.973e-05,2]
[344865326,1733844638547,-2096.10534965,9.973e-05,2]
[344865331,1733844638594,-58162.10210089,9.973e-05,2]
[344865333,1733844638604,-171.0,9.973e-05,2]
[344865335,1733844638615,-1026.825,9.973e-05,2]
[344865337,1733844638625,-2473.03088819,9.973e-05,2]
[344865339,1733844638637,-4408.0,9.973e-05,2]
[344865341,1733844638649,-4399.999999,9.973e-05,2]
[344865344,1733844638661,-13108.96911281,9.973e-05,2]
[344865346,1733844638671,-388.14453515,9.973e-05,2]
[344865347,1733844638681,-163.59285226,9.973e-05,2]
[344865348,1733844638690,-500.0,9.973e-05,2]
[344865350,1733844638700,-500.0,9.973e-05,2]
[344865352,1733844638710,-500.0,9.973e-05,2]
[344865354,1733844638720,-202.03001474,9.973e-05,2]
[344865356,1733844638730,-500.0,9.973e-05,2]
[344865358,1733844638741,-159.791776,9.973e-05,2]
[344865360,1733844638751,-321.2929067,9.973e-05,2]
[344865362,1733844638761,-500.0,9.973e-05,2]
[344865364,1733844638771,-161.09890169,9.973e-05,2]
[344865366,1733844638781,-203.63870392,9.973e-05,2]
[344865368,1733844638792,-311.02613995,9.973e-05,2]
[344865370,1733844638801,-1000.0,9.978e-05,2]
[344865372,1733844638811,-825.6,9.978e-05,2]
[344865374,1733844638820,-666.0,9.999e-05,2]
[344865376,1733844638844,-666.0,9.999e-05,2]
[344865378,1733844638854,-500.0,9.999e-05,2]
[344865380,1733844638864,-500.0,9.999e-05,2]
[344865382,1733844638874,-580.4773436,9.999e-05,2]
[344865384,1733844638884,-500.0,9.999e-05,2]
[344865386,1733844638893,-619.69155641,9.999e-05,2]
[344865388,1733844638902,-14377704.00497298,0.0001,2]
[344865390,1733844638912,-6457.83869994,0.0001,2]
[344865392,1733844638922,-52903.3642631,0.0001,2]
[344865394,1733844638932,-22607.97365586,0.0001,2]
[344865396,1733844638945,-2607.03765363,0.0001,2]
[344865398,1733844638955,-8016.19084711,0.0001,2]
[344865400,1733844638965,-11431.70489589,0.0001,2]
[344865402,1733844638974,-10000.0,0.0001,3]
[344865404,1733844638987,-379.47762372,0.0001,2]
[344865406,1733844638997,-200.0,0.0001,2]
[344865408,1733844639007,-482.36053002,0.0001,2]
[344865410,1733844639016,-122181.16898382,0.0001,2]
[344865416,1733844639066,-19342.20507449,0.0001,2]
[344865418,1733844639089,-3000.0,0.0001,2]
[344865420,1733844639100,-3309.17607566,0.0001,2]
[344865422,1733844639110,-3546.30594793,0.0001,2]
[344865424,1733844639120,-5352.97872846,0.0001,2]
[344865426,1733844639129,-2533.52525723,0.0001,2]
[344865428,1733844639139,-2533.52525723,0.0001,2]
[344865430,1733844639149,-1749.48940709,0.0001,2]
[344865432,1733844639161,-437.59,0.0001,2]
[344865434,1733844639174,-346.44585014,0.0001,2]
[344865436,1733844639184,-482.36052998,0.0001006,2]
[344865438,1733844639197,-166.68,0.0001006,2]
[344865440,1733844639207,-420.0,0.0001008,2]
[344865442,1733844639218,-151.4,0.00010194,2]
[344865444,1733844639230,-482.36052998,0.00010219,2]
[344865446,1733844639240,-754.02,0.00010228,2]
[344865448,1733844639250,-428.09146526,0.00010363,2]
[344865450,1733844639260,-482.36052998,0.00010379,2]
[344865452,1733844639271,-3309.17607564,0.00010379,2]
[344865454,1733844639281,-3546.30594791,0.00010379,2]
[344865456,1733844639291,-1293.5,0.00010409,2]
[344865458,1733844639300,-255.0,0.00010444,2]
[344865460,1733844639310,-616.67704139,0.00010521,2]
[344865462,1733844639326,-383.32295861,0.00010521,2]
[344865464,1733844639345,-500.17922945,0.00010521,2]
[344865466,1733844639355,-500.61813983,0.00010521,2]
[344865468,1733844639366,-729.13684399,0.00010521,2]
[344865470,1733844639376,-1000.0,0.00010521,2]
[344865472,1733844639386,-428.09146526,0.00010529,2]
[344865474,1733844639396,-482.36052998,0.00010539,2]
[344865476,1733844639407,-754.02,0.00010593,2]
[344865478,1733844639416,-482.36052998,0.00010698,2]
[344865479,1733844639426,-1000.0,0.000108,2]
[344865481,1733844639436,-624.0,0.00010821,2]
[344865483,1733844639447,-264.0,0.00010841,2]
[344865486,1733844639457,-264.0,0.00010841,2]
[344865488,1733844639468,-264.0,0.00010841,2]
[344865490,1733844639478,-264.0,0.00010841,2]
[344865492,1733844639488,-264.0,0.00010841,2]
[344865493,1733844639498,-264.0,0.00010841,2]
[344865496,1733844639507,-264.0,0.00010841,2]
[344865498,1733844639518,-264.0,0.00010841,2]
[344865500,1733844639528,-264.0,0.00010841,2]
[344865501,1733844639538,-264.0,0.00010841,2]
[344865502,1733844639548,-264.0,0.00010841,2]
[344865503,1733844639558,-264.0,0.00010841,2]
[344865504,1733844639567,-264.0,0.00010841,2]
[344865505,1733844639590,-264.0,0.00010841,2]
[344865506,1733844639600,-212.0,0.00010841,2]
[344865507,1733844639610,-212.0,0.00010841,2]
[344865509,1733844639620,-212.0,0.00010841,2]
[344865511,1733844639629,-212.0,0.00010841,2]
[344865513,1733844639638,-209.81789998,0.00010841,2]
[344865518,1733844639677,-2.18210002,0.00010841,2]
[344865520,1733844639687,-212.0,0.00010841,2]
[344865522,1733844639696,-212.0,0.00010841,2]
[344865526,1733844639706,-212.0,0.00010841,2]
[344865528,1733844639715,-212.0,0.00010841,2]
[344865530,1733844639725,-162.49173915,0.00010841,2]
[344865541,1733844639824,-49.50826085,0.00010841,2]
[344865543,1733844639845,-212.0,0.00010841,2]
[344865545,1733844639855,-212.0,0.00010841,2]
[344865547,1733844639864,-212.0,0.00010841,2]
[344865548,1733844639874,-212.0,0.00010841,2]
[344865550,1733844639884,-482.36052998,0.00010858,2]
[344865552,1733844639894,-3309.17607564,0.00010858,2]
[344865554,1733844639904,-3546.30594791,0.00010858,2]
[344865555,1733844639913,-428.09146526,0.00010879,2]
[344865556,1733844639922,-347.36449232,0.000109,2]
[344865557,1733844639932,-347.36449232,0.000109,2]
[344865558,1733844639943,-347.36449232,0.000109,2]
[344865559,1733844639952,-347.36449232,0.000109,2]
[344865560,1733844639961,-347.36449232,0.000109,2]
[344865561,1733844639970,-347.36449232,0.000109,2]
[344865562,1733844639983,-347.36449232,0.000109,2]
[344865563,1733844639994,-347.36449232,0.000109,2]
[344865564,1733844640003,-347.36449232,0.000109,2]
[344865565,1733844640013,-347.36449232,0.000109,2]
[344865566,1733844640022,-347.36449232,0.000109,2]
[344865567,1733844640032,-347.36449232,0.000109,2]
[344865568,1733844640041,-347.36449232,0.000109,2]
[344865569,1733844640050,-347.36449232,0.000109,2]
[344865570,1733844640061,-347.36449232,0.000109,2]
[344865571,1733844640071,-1312.0,0.000109,2]
[344865572,1733844640081,-666.0,0.00010957,2]
[344865573,1733844640091,-666.0,0.00010957,2]
[344865574,1733844640101,-754.02,0.00010958,2]
[344865575,1733844640111,-500.0,0.00010958,2]
[344865576,1733844640120,-500.0,0.00010958,2]
[344865577,1733844640130,-500.0,0.00010958,2]
[344865578,1733844640140,-312.29613128,0.00010958,2]
[344865582,1733844640869,-147.7966525,0.00010958,2]
[344865583,1733844640880,-176.5273475,0.00010958,2]
[344865584,1733844640893,-324.78141895,0.00010958,2]
[344865585,1733844640902,-90.8286086,0.00010958,2]
[344865586,1733844640915,-409.1713914,0.00010958,2]
[344865587,1733844640925,-502.00560153,0.00010958,2]
[344865588,1733844640937,-500.97795235,0.00010958,2]
[344865589,1733844640948,-500.0,0.00010958,2]
[344865590,1733844640958,-500.0,0.00010958,2]
[344865591,1733844640967,-506.70191594,0.00010958,2]
[344865592,1733844640981,-502.08965477,0.00010958,2]
[344865593,1733844640991,-500.0,0.00010958,2]
[344865594,1733844641001,-502.2814004,0.00010958,2]
[344865595,1733844641011,-501.7052007,0.00010958,2]
[344865596,1733844641020,-500.0,0.00010958,2]
[344865597,1733844641030,-500.0,0.00010958,2]
[344865598,1733844641040,-390.41233041,0.00010958,2]
[344865599,1733844641107,-109.58766959,0.00010958,2]
[344865600,1733844641117,-180.78341342,0.00010958,2]
[344865601,1733844641126,-31.46891699,0.00010958,2]
[344865602,1733844641206,-468.53108301,0.00010958,2]
[344865603,1733844641215,-500.0,0.00010958,2]
[344865604,1733844641225,-557.0073017,0.00010958,2]
[344865605,1733844641235,-239.16702753,0.00010958,2]
[344865606,1733844641245,-500.0,0.00010958,2]
[344865607,1733844641254,-502.46180031,0.00010958,2]
[344865608,1733844641265,-408.22648633,0.00010958,2]
[344865609,1733844641276,-500.0,0.00010958,2]
[344865610,1733844641287,-500.89598542,0.00010958,2]
[344865611,1733844641296,-502.95634271,0.00010958,2]
[344865612,1733844641307,-500.0,0.00010958,2]
[344865613,1733844641321,-500.0,0.00010958,2]
[344865614,1733844641345,-500.0,0.00010958,2]
[344865615,1733844641354,-500.0,0.00010958,2]
[344865616,1733844641364,-500.0,0.00010958,2]
[344865617,1733844641374,-500.0,0.00010958,2]
[344865618,1733844641384,-500.0,0.00010958,2]
[344865619,1733844641395,-500.0,0.00010958,2]
[344865620,1733844641404,-500.0,0.00010958,2]
[344865621,1733844641414,-500.0,0.00010958,2]
[344865622,1733844641424,-500.0,0.00010958,2]
[344865623,1733844641435,-500.0,0.00010958,2]
[344865624,1733844641445,-500.0,0.00010958,2]
[344865625,1733844641455,-500.0,0.00010958,2]
[344865626,1733844641467,-500.0,0.00010958,2]
[344865627,1733844641480,-500.0,0.00010958,2]
[344865628,1733844641490,-500.0,0.00010958,2]
[344865629,1733844641501,-500.0,0.00010958,2]
[344865630,1733844641511,-382.62065965,0.00010958,2]
[344865631,1733844641522,-501.17307276,0.00010958,2]
[344865632,1733844641532,-500.0,0.00010958,2]
[344865633,1733844641543,-500.0,0.00010958,2]
[344865634,1733844641553,-500.0,0.00010958,2]
[344865635,1733844641563,-500.0,0.00010958,2]
[344865636,1733844641575,-417.77373224,0.00010958,2]
[344865637,1733844641597,-500.0,0.00010958,2]
[344865638,1733844641608,-501.15680117,0.00010958,2]
[344865639,1733844641619,-500.0,0.00010958,2]
[344865640,1733844641631,-500.0,0.00010958,2]
[344865641,1733844641642,-500.0,0.00010958,2]
[344865642,1733844641653,-500.0,0.00010958,2]
[344865643,1733844641663,-500.0,0.00010958,2]
[344865644,1733844641674,-500.0,0.00010958,2]
[344865645,1733844641683,-500.0,0.00010958,2]
[344865646,1733844641693,-500.0,0.00010958,2]
[344865647,1733844641704,-500.0,0.00010958,2]
[344865648,1733844641714,-500.0,0.00010958,2]
[344865649,1733844641724,-500.0,0.00010958,2]
[344865650,1733844641734,-500.0,0.00010958,2]
[344865651,1733844641744,-580.6345692,0.00010958,2]
[344865652,1733844641756,-500.0,0.00010958,2]
[344865653,1733844641766,-500.0,0.00010958,2]
[344865654,1733844641776,-500.0,0.00010958,2]
[344865655,1733844641786,-500.0,0.00010958,2]
[344865656,1733844641797,-500.0,0.00010958,2]
[344865657,1733844641806,-500.0,0.00010958,2]
[344865658,1733844641817,-500.0,0.00010958,2]
[344865659,1733844641841,-500.0,0.00010958,2]
[344865660,1733844641851,-500.0,0.00010958,2]
[344865661,1733844641861,-500.0,0.00010958,2]
[344865662,1733844641871,-500.0,0.00010958,2]
[344865663,1733844641881,-306.8,0.00010958,2]
[344865664,1733844641891,-500.0,0.00010958,2]
[344865665,1733844641900,-500.0,0.00010958,2]
[344865666,1733844641909,-500.0,0.00010958,2]
[344865667,1733844641919,-500.0,0.00010958,2]
[344865668,1733844641929,-500.0,0.00010958,2]
[344865669,1733844641945,-500.0,0.00010958,2]
[344865670,1733844641954,-500.0,0.00010958,2]
[344865671,1733844641964,-430.33855579,0.00010958,2]
[344865672,1733844642045,-69.66144421,0.00010958,2]
[344865673,1733844642055,-500.0,0.00010958,2]
[344865674,1733844642066,-500.0,0.00010958,2]
[344865675,1733844642088,-500.0,0.00010958,2]
[344865676,1733844642098,-500.0,0.00010958,2]
[344865677,1733844642107,-500.0,0.00010958,2]
[344865678,1733844642117,-500.0,0.00010958,2]
[344865679,1733844642127,-500.0,0.00010958,2]
[344865680,1733844642136,-500.0,0.00010958,2]
[344865681,1733844642146,-500.0,0.00010958,2]
[344865682,1733844642156,-500.0,0.00010958,2]
[344865683,1733844642165,-500.0,0.00010958,2]
[344865684,1733844642175,-500.0,0.00010958,2]
[344865685,1733844642185,-500.0,0.00010958,2]
[344865686,1733844642194,-240.80806062,0.00010958,2]
[344865687,1733844642218,-259.19193938,0.00010958,2]
[344865688,1733844642227,-500.0,0.00010958,2]
[344865689,1733844642237,-500.0,0.00010958,2]
[344865690,1733844642246,-500.0,0.00010958,2]
[344865691,1733844642255,-435.12,0.00010958,2]
[344865692,1733844642265,-500.0,0.00010958,2]
[344865693,1733844642274,-500.0,0.00010958,2]
[344865694,1733844642284,-500.0,0.00010958,2]
[344865695,1733844642293,-500.0,0.00010958,2]
[344865696,1733844642303,-500.0,0.00010958,2]
[344865697,1733844642313,-500.0,0.00010958,2]
[344865698,1733844642323,-382.78033269,0.00010958,2]
[344865699,1733844642345,-500.0,0.00010958,2]
[344865700,1733844642355,-500.0,0.00010958,2]
[344865701,1733844642364,-594.53,0.00010958,2]
[344865702,1733844642374,-500.0,0.00010958,2]
[344865703,1733844642383,-594.53,0.00010958,2]
[344865704,1733844642393,-500.0,0.00010958,2]
[344865705,1733844642403,-594.53,0.00010958,2]
[344865706,1733844642413,-500.0,0.00010958,2]
[344865707,1733844642422,-124.31772793,0.00010958,2]
[344865741,1733844643629,-470.21227207,0.00010958,2]
[344865742,1733844643638,-500.0,0.00010958,2]
[344865743,1733844643648,-203.68,0.00010958,2]
[344865744,1733844643659,-594.53,0.00010958,2]
[344865745,1733844643668,-102.07147793,0.00010958,2]
[344865746,1733844643746,-492.45852207,0.00010958,2]
[344865747,1733844643756,-151.61147792,0.00010958,2]
[344865748,1733844643833,-312.54691168,0.00010958,2]
[344865749,1733844643849,-130.3716104,0.00010958,2]
[344865750,1733844643859,-594.53,0.00010958,2]
[344865751,1733844643869,-594.53,0.00010958,2]
[344865752,1733844643880,-277.92119727,0.00010958,2]
[344865753,1733844643895,-316.60880273,0.00010958,2]
[344865754,1733844643905,-594.53,0.00010958,2]
[344865755,1733844643915,-260.1759891,0.00010958,2]
[344865756,1733844643925,-500.0,0.00010958,2]
[344865757,1733844643935,-500.0,0.00010958,2]
[344865758,1733844643954,-594.53,0.00010958,2]
[344865759,1733844643965,-500.0,0.00010958,2]
[344865760,1733844643981,-500.0,0.00010958,2]
[344865761,1733844643992,-594.53,0.00010958,2]
[344865762,1733844644001,-500.0,0.00010958,2]
[344865763,1733844644012,-500.0,0.00010958,2]
[344865764,1733844644022,-594.53,0.00010958,2]
[344865765,1733844644033,-594.53,0.00010958,2]
[344865766,1733844644043,-500.0,0.00010958,2]
[344865767,1733844644054,-500.0,0.00010958,2]
[344865768,1733844644064,-500.0,0.00010958,2]
[344865769,1733844644084,-594.53,0.00010958,2]
[344865770,1733844644095,-594.53,0.00010958,2]
[344865771,1733844644104,-500.0,0.00010958,2]
[344865772,1733844644114,-500.0,0.00010958,2]
[344865773,1733844644125,-500.0,0.00010958,2]
[344865774,1733844644135,-500.0,0.00010958,2]
[344865775,1733844644145,-594.53,0.00010958,2]
[344865776,1733844644155,-594.53,0.00010958,2]
[344865777,1733844644165,-500.0,0.00010958,2]
[344865778,1733844644176,-594.53,0.00010958,2]
[344865779,1733844644185,-500.0,0.00010958,2]
[344865780,1733844644196,-594.53,0.00010958,2]
[344865781,1733844644205,-500.0,0.00010958,2]
[344865782,1733844644214,-594.53,0.00010958,2]
[344865783,1733844644223,-500.0,0.00010958,2]
[344865784,1733844644232,-594.53,0.00010958,2]
[344865785,1733844644242,-594.56,0.00010958,2]
[344865786,1733844644252,-500.0,0.00010958,2]
[344865787,1733844644262,-500.0,0.00010958,2]
[344865788,1733844644272,-500.0,0.00010958,2]
[344865789,1733844644282,-500.0,0.00010958,2]
[344865790,1733844644292,-500.0,0.00010958,2]
[344865791,1733844644302,-500.0,0.00010958,2]
[344865792,1733844644311,-500.0,0.00010958,2]
[344865793,1733844644320,-327.3961344,0.00010958,2]
[344865794,1733844644343,-500.0,0.00010958,2]
[344865795,1733844644353,-500.0,0.00010958,2]
[344865796,1733844644362,-501.91139817,0.00010958,2]
[344865797,1733844644372,-500.0,0.00010958,2]
[344865798,1733844644382,-500.0,0.00010958,2]
[344865799,1733844644391,-500.0,0.00010958,2]
[344865800,1733844644400,-500.0,0.00010958,2]
[344865801,1733844644409,-500.0,0.00010958,2]
[344865802,1733844644418,-500.0,0.00010958,2]
[344865803,1733844644428,-620.26528402,0.00010958,2]
[344865804,1733844644438,-500.0,0.00010958,2]
[344865805,1733844644448,-500.0,0.00010958,2]
[344865806,1733844644459,-500.0,0.00010958,2]
[344865807,1733844644469,-500.0,0.00010958,2]
[344865808,1733844644479,-500.0,0.00010958,2]
[344865809,1733844644489,-500.0,0.00010958,2]
[344865810,1733844644498,-500.0,0.00010958,2]
[344865811,1733844644508,-500.0,0.00010958,2]
[344865812,1733844644518,-155.94066825,0.00010958,2]
[344865813,1733844644528,-500.0,0.00010958,2]
[344865814,1733844644538,-500.0,0.00010958,2]
[344865815,1733844644548,-500.0,0.00010958,2]
[344865816,1733844644558,-500.0,0.00010958,2]
[344865817,1733844644567,-500.0,0.00010958,2]
[344865818,1733844644585,-500.0,0.00010958,2]
[344865819,1733844644594,-500.0,0.00010958,2]
[344865820,1733844644604,-500.0,0.00010958,2]
[344865821,1733844644614,-500.0,0.00010958,2]
[344865822,1733844644624,-500.0,0.00010958,2]
[344865823,1733844644633,-500.0,0.00010958,2]
[344865824,1733844644643,-500.0,0.00010958,2]